Workbook

Sheet Лист1
B3: МАОУ СОШ №1
B5: Кружок «Happy English»
B6: Абзяппарова А.И.
B7: S- кв.м. | D7: 49
B8: Кол-во занятий в мес. - | D8: 4
B9: Кол-во детей - | D9: 15
B10: Ст-ть использ-го оборудования - руб. | D10: 116351.9
B12: 1. ОТ на 1 обучающего - руб.: | D12: =D13+D15 -> 34.09
B13: Окл.-25250 руб., 1 катег. - 3030 руб. | D13: =28280/18/4/D9 -> 26.19
B15: Начисление на ОТ - | D15: =D13*30.2% -> 7.91
B18: 2. Затраты на мат.запасы на 1 реб. -руб.
B19: ст обор/36мес.=руб. | D19: =D10/36 -> 3232.00
B20: Затраты на 1 занятие- ст обор в мес/кол-во часов в мес/кол-во детей - руб. | D20: =D19/D8/D9 -> 53.87
B22: 3. Объем накладных затрат 1 ребенка - руб. | D22: =D30 -> 38.91
B23: Расчет накладных затрат
B24: 1 | C24: прогноз затрат на АУП | D24: -
B25: 2 | C25: Прогноз затрат общехозяйственного назнач. | D25: =D34+D35+25.2 -> 38.91
B26: 3 | C26: Прогноз суммы начисленной амортизации имущ-ва общехоз-го назнач. | D26: -
B27: 4 | C27: Прогноз ФОТ основного персонала | D27: =D12 -> 34.09
B28: 5 | C28: Коэффициент накладных затрат 5=(1+2+3)/4 | D28: =D25/D27 -> 1.14
B29: 6 | C29: Затраты на основн персонал, | D29: =D12 -> 34.09
B30: 7 | C30: Итого накладные затраты (в час на 1 реб) | D30: =D25 -> 38.91
B33: 1. | C33: ОТ уборщика: руб.
C34: 22440 руб./40 час/4 нед*1 час=95,49/кол-во дет, руб. | D34: =140.25*1.302/D9 -> 12.17
B35: 2. | C35: Затраты на ком. Услуги: коммун/кол-во дет, руб. | D35: =(B36+B40+B45)/D9 -> 1.53
A36: Э/Э - | B36: =0.007*D7*11 -> 3.77 | C36: руб.
A37: Годов. Потребл - 64338 квт/ч (факт 2024 г)
A38: 64338 квт/ч/244 раб.дн.в году=263,68 квт/ч в день/12 час.=21,97 квт/ч (затраты в час работы на все здание)
A39: 21,97 квт/ч /3026,6 кв.м*12,9 кв.м.=1,56 квт/ч*5,69 руб.=
A40: Вода- | B40: =F41+F42+F43+F44 -> 16.24 | C40: руб.
A41: 1 реб*75 л(в день норма)/12 часов/1000=0,00625 куб.м*64,63 руб.=0,66 руб.*кол-во дет= руб. | F41: =0.4*D9 -> 6
A42: 2 работника (воспит, уборщ)*20 л/12 час/1000=0,003 куб.м.*64,63 руб.= руб. | F42: 0.19
A43: На мытье полов 75 л/1000=0,075 куб.м.*105,86 уб.= руб. | F43: 4.85
A44: Водоотвед. 0,00625 куб.м.+0,003 куб.м.+0,075 куб.м.=0,08425 куб.м.*35,63 руб= руб. | F44: =0.084*61.85 -> 5.20
A45: Отопление - | B45: =0.015*D7/30/24*2902.6 -> 2.96 | C45: руб.
A46: 373 Гкал(по факту 2024 г)/8 мес(период отопления)= 46,63 Гкал в мес.
A47: 46,63 Гкал/3026,6*12,9 кв.м=1,270Гкал/30 дн/24 ч*1 ч=0,0018 Гкал в час*2003 руб.= руб.
B49: 3. | C49: Материальные затраты - 2,3 руб.
A50: Канцелярские товары (для ведения документации) – 10,0 руб. на одного ребенка
A51: Стоимость – 6500руб.
A52: Срок полезного использования – 8 мес.
A53: Расходы в месяц – 812,5/15=54,2
A54: Затраты на одного ребенка за одно занятие – 54,2/4 занятий в мес=13,5
A55: - Моющие средства для уборки помещения – 1,1 руб. на одного ребенка
A56: Стоимость – 5632
A57: Срок полезного использования – 8 мес.
A58: Расходы в месяц –704/8=88
A59: Затраты на одного ребенка за одно занятие –704/4 занятий в мес/15 дет | D59: 11,73 руб.
C61: Расчет стоимости одного занятия на 1 человека:
C62: Расчет цены на оказание платной услуги
C64: Наименование статей затрат | D64: Сумма (руб.)
B65: 1 | C65: Затраты на оплату труда основного персонала | D65: =D12*D9 -> 511.40
B66: 2 | C66: Затраты материальных запасов | D66: =D20*D9 -> 808.00
B67: 3 | C67: Сумма начисленной амортизации оборудования, используемого при оказании платной услуги | D67: -
B68: 4 | C68: Накладные затраты, относимые на платную услугу | D68: =D25*D9 -> 583.58
B69: 5 | C69: Итого затрат | D69: =SUM(D65:D68) -> 1902.97
B70: 6 | C70: Цена на 1 платную услугу | D70: =D69/D9 -> 126.86
B71: 7 | C71: Цена в месяц на 1 ребенка | D71: =D70*D8 -> 507.46

Sheet Лист2
B3: МАОУ СОШ №1
B5: Кружок «В мире чисел»
B6: Сафина И.И.
B7: S- кв.м. | D7: 49
B8: Кол-во занятий в мес. - | D8: 4
B9: Кол-во детей - | D9: 15
B10: Ст-ть использ-го оборудования - руб. | D10: 116351.9
B12: 1. ОТ на 1 обучающего - руб.: | D12: =D13+D15 -> 34.09
B13: Окл.-25250 руб., 1 катег. - 3030 руб. | D13: =28280/18/4/D9 -> 26.19
B15: Начисление на ОТ - | D15: =D13*30.2% -> 7.91
B18: 2. Затраты на мат.запасы на 1 реб. -руб.
B19: ст обор/36мес.=руб. | D19: =D10/36 -> 3232.00
B20: Затраты на 1 занятие- ст обор в мес/кол-во часов в мес/кол-во детей - руб. | D20: =D19/D8/D9 -> 53.87
B22: 3. Объем накладных затрат 1 ребенка - руб. | D22: =D30 -> 38.91
B23: Расчет накладных затрат
B24: 1 | C24: прогноз затрат на АУП | D24: -
B25: 2 | C25: Прогноз затрат общехозяйственного назнач. | D25: =D34+D35+25.2 -> 38.91
B26: 3 | C26: Прогноз суммы начисленной амортизации имущ-ва общехоз-го назнач. | D26: -
B27: 4 | C27: Прогноз ФОТ основного персонала | D27: =D12 -> 34.09
B28: 5 | C28: Коэффициент накладных затрат 5=(1+2+3)/4 | D28: =D25/D27 -> 1.14
B29: 6 | C29: Затраты на основн персонал, | D29: =D12 -> 34.09
B30: 7 | C30: Итого накладные затраты (в час на 1 реб) | D30: =D25 -> 38.91
B33: 1. | C33: ОТ уборщика: руб.
C34: 22440 руб./40 час/4 нед*1 час=95,49/кол-во дет, руб. | D34: =140.25*1.302/D9 -> 12.17
B35: 2. | C35: Затраты на ком. Услуги: коммун/кол-во дет, руб. | D35: =(B36+B40+B45)/D9 -> 1.53
A36: Э/Э - | B36: =0.007*D7*11 -> 3.77 | C36: руб.
A37: Годов. Потребл - 64338 квт/ч (факт 2024 г)
A38: 64338 квт/ч/244 раб.дн.в году=263,68 квт/ч в день/12 час.=21,97 квт/ч (затраты в час работы на все здание)
A39: 21,97 квт/ч /3026,6 кв.м*12,9 кв.м.=1,56 квт/ч*5,69 руб.=
A40: Вода- | B40: =F41+F42+F43+F44 -> 16.24 | C40: руб.
A41: 1 реб*75 л(в день норма)/12 часов/1000=0,00625 куб.м*64,63 руб.=0,66 руб.*кол-во дет= руб. | F41: =0.4*D9 -> 6
A42: 2 работника (воспит, уборщ)*20 л/12 час/1000=0,003 куб.м.*64,63 руб.= руб. | F42: 0.19
A43: На мытье полов 75 л/1000=0,075 куб.м.*105,86 уб.= руб. | F43: 4.85
A44: Водоотвед. 0,00625 куб.м.+0,003 куб.м.+0,075 куб.м.=0,08425 куб.м.*35,63 руб= руб. | F44: =0.084*61.85 -> 5.20
A45: Отопление - | B45: =0.015*D7/30/24*2902.6 -> 2.96 | C45: руб.
A46: 373 Гкал(по факту 2024 г)/8 мес(период отопления)= 46,63 Гкал в мес.
A47: 46,63 Гкал/3026,6*12,9 кв.м=1,270Гкал/30 дн/24 ч*1 ч=0,0018 Гкал в час*2003 руб.= руб.
B49: 3. | C49: Материальные затраты - 2,3 руб.
A50: Канцелярские товары (для ведения документации) – 10,0 руб. на одного ребенка
A51: Стоимость – 6500руб.
A52: Срок полезного использования – 8 мес.
A53: Расходы в месяц – 812,5/15=54,2
A54: Затраты на одного ребенка за одно занятие – 54,2/4 занятий в мес=13,5
A55: - Моющие средства для уборки помещения – 1,1 руб. на одного ребенка
A56: Стоимость – 5632
A57: Срок полезного использования – 8 мес.
A58: Расходы в месяц –704/8=88
A59: Затраты на одного ребенка за одно занятие –704/4 занятий в мес/15 дет | D59: 11,73 руб.
C61: Расчет стоимости одного занятия на 1 человека:
C62: Расчет цены на оказание платной услуги
C64: Наименование статей затрат | D64: Сумма (руб.)
B65: 1 | C65: Затраты на оплату труда основного персонала | D65: =D12*D9 -> 511.40
B66: 2 | C66: Затраты материальных запасов | D66: =D20*D9 -> 808.00
B67: 3 | C67: Сумма начисленной амортизации оборудования, используемого при оказании платной услуги | D67: -
B68: 4 | C68: Накладные затраты, относимые на платную услугу | D68: =D25*D9 -> 583.58
B69: 5 | C69: Итого затрат | D69: =SUM(D65:D68) -> 1902.97
B70: 6 | C70: Цена на 1 платную услугу | D70: =D69/D9 -> 126.86
B71: 7 | C71: Цена в месяц на 1 ребенка | D71: =D70*D8 -> 507.46

Sheet Лист3
B3: МАОУ СОШ №1
B5: Кружок «Мир вокруг нас»
B6: Файзуллина Г.Х.
B7: S- кв.м. | D7: 49
B8: Кол-во занятий в мес. - | D8: 4
B9: Кол-во детей - | D9: 15
B10: Ст-ть использ-го оборудования - руб. | D10: 116351.9
B12: 1. ОТ на 1 обучающего - руб.: | D12: =D13+D15 -> 37.75
B13: Окл.-25250 руб., высш катег. - 6060 руб. | D13: =31310/18/4/D9 -> 28.99
B15: Начисление на ОТ - | D15: =D13*30.2% -> 8.76
B18: 2. Затраты на мат.запасы на 1 реб. -руб.
B19: ст обор/36мес.=руб. | D19: =D10/36 -> 3232.00
B20: Затраты на 1 занятие- ст обор в мес/кол-во часов в мес/кол-во детей - руб. | D20: =D19/D8/D9 -> 53.87
B22: 3. Объем накладных затрат 1 ребенка - руб. | D22: =D30 -> 38.91
B23: Расчет накладных затрат
B24: 1 | C24: прогноз затрат на АУП | D24: -
B25: 2 | C25: Прогноз затрат общехозяйственного назнач. | D25: =D34+D35+25.2 -> 38.91
B26: 3 | C26: Прогноз суммы начисленной амортизации имущ-ва общехоз-го назнач. | D26: -
B27: 4 | C27: Прогноз ФОТ основного персонала | D27: =D12 -> 37.75
B28: 5 | C28: Коэффициент накладных затрат 5=(1+2+3)/4 | D28: =D25/D27 -> 1.03
B29: 6 | C29: Затраты на основн персонал, | D29: =D12 -> 37.75
B30: 7 | C30: Итого накладные затраты (в час на 1 реб) | D30: =D25 -> 38.91
B33: 1. | C33: ОТ уборщика: руб.
C34: 22440 руб./40 час/4 нед*1 час=95,49/кол-во дет, руб. | D34: =140.25*1.302/D9 -> 12.17
B35: 2. | C35: Затраты на ком. Услуги: коммун/кол-во дет, руб. | D35: =(B36+B40+B45)/D9 -> 1.53
A36: Э/Э - | B36: =0.007*D7*11 -> 3.77 | C36: руб.
A37: Годов. Потребл - 64338 квт/ч (факт 2024 г)
A38: 64338 квт/ч/244 раб.дн.в году=263,68 квт/ч в день/12 час.=21,97 квт/ч (затраты в час работы на все здание)
A39: 21,97 квт/ч /3026,6 кв.м*12,9 кв.м.=1,56 квт/ч*5,69 руб.=
A40: Вода- | B40: =F41+F42+F43+F44 -> 16.24 | C40: руб.
A41: 1 реб*75 л(в день норма)/12 часов/1000=0,00625 куб.м*64,63 руб.=0,66 руб.*кол-во дет= руб. | F41: =0.4*D9 -> 6
A42: 2 работника (воспит, уборщ)*20 л/12 час/1000=0,003 куб.м.*64,63 руб.= руб. | F42: 0.19
A43: На мытье полов 75 л/1000=0,075 куб.м.*105,86 уб.= руб. | F43: 4.85
A44: Водоотвед. 0,00625 куб.м.+0,003 куб.м.+0,075 куб.м.=0,08425 куб.м.*35,63 руб= руб. | F44: =0.084*61.85 -> 5.20
A45: Отопление - | B45: =0.015*D7/30/24*2902.6 -> 2.96 | C45: руб.
A46: 373 Гкал(по факту 2024 г)/8 мес(период отопления)= 46,63 Гкал в мес.
A47: 46,63 Гкал/3026,6*12,9 кв.м=1,270Гкал/30 дн/24 ч*1 ч=0,0018 Гкал в час*2003 руб.= руб.
B49: 3. | C49: Материальные затраты - 2,3 руб.
A50: Канцелярские товары (для ведения документации) – 10,0 руб. на одного ребенка
A51: Стоимость – 6500руб.
A52: Срок полезного использования – 8 мес.
A53: Расходы в месяц – 812,5/15=54,2
A54: Затраты на одного ребенка за одно занятие – 54,2/4 занятий в мес=13,5
A55: - Моющие средства для уборки помещения – 1,1 руб. на одного ребенка
A56: Стоимость – 5632
A57: Срок полезного использования – 8 мес.
A58: Расходы в месяц –704/8=88
A59: Затраты на одного ребенка за одно занятие –704/4 занятий в мес/15 дет | D59: 11,73 руб.
C61: Расчет стоимости одного занятия на 1 человека:
C62: Расчет цены на оказание платной услуги
C64: Наименование статей затрат | D64: Сумма (руб.)
B65: 1 | C65: Затраты на оплату труда основного персонала | D65: =D12*D9 -> 566.19
B66: 2 | C66: Затраты материальных запасов | D66: =D20*D9 -> 808.00
B67: 3 | C67: Сумма начисленной амортизации оборудования, используемого при оказании платной услуги | D67: -
B68: 4 | C68: Накладные затраты, относимые на платную услугу | D68: =D25*D9 -> 583.58
B69: 5 | C69: Итого затрат | D69: =SUM(D65:D68) -> 1957.77
B70: 6 | C70: Цена на 1 платную услугу | D70: =D69/D9 -> 130.52
B71: 7 | C71: Цена в месяц на 1 ребенка | D71: =D70*D8 -> 522.07

Sheet Лист4
B3: МАОУ СОШ №1
B5: Кружок "АБВГДейка"
B6: Иванова З.Н.
B7: S- кв.м. | D7: 49
B8: Кол-во занятий в мес. - | D8: 4
B9: Кол-во детей - | D9: 15
B10: Ст-ть использ-го оборудования - руб. | D10: 116351.9
B12: 1. ОТ на 1 обучающего - руб.: | D12: =D13+D15 -> 34.09
B13: Окл.-25250 руб., 1 катег. - 3030 руб. | D13: =28280/18/4/D9 -> 26.19
B15: Начисление на ОТ - | D15: =D13*30.2% -> 7.91
B18: 2. Затраты на мат.запасы на 1 реб. -руб.
B19: ст обор/36мес.=руб. | D19: =D10/36 -> 3232.00
B20: Затраты на 1 занятие- ст обор в мес/кол-во часов в мес/кол-во детей - руб. | D20: =D19/D8/D9 -> 53.87
B22: 3. Объем накладных затрат 1 ребенка - руб. | D22: =D30 -> 38.91
B23: Расчет накладных затрат
B24: 1 | C24: прогноз затрат на АУП | D24: -
B25: 2 | C25: Прогноз затрат общехозяйственного назнач. | D25: =D34+D35+25.2 -> 38.91
B26: 3 | C26: Прогноз суммы начисленной амортизации имущ-ва общехоз-го назнач. | D26: -
B27: 4 | C27: Прогноз ФОТ основного персонала | D27: =D12 -> 34.09
B28: 5 | C28: Коэффициент накладных затрат 5=(1+2+3)/4 | D28: =D25/D27 -> 1.14
B29: 6 | C29: Затраты на основн персонал, | D29: =D12 -> 34.09
B30: 7 | C30: Итого накладные затраты (в час на 1 реб) | D30: =D25 -> 38.91
B33: 1. | C33: ОТ уборщика: руб.
C34: 22440 руб./40 час/4 нед*1 час=95,49/кол-во дет, руб. | D34: =140.25*1.302/D9 -> 12.17
B35: 2. | C35: Затраты на ком. Услуги: коммун/кол-во дет, руб. | D35: =(B36+B40+B45)/D9 -> 1.53
A36: Э/Э - | B36: =0.007*D7*11 -> 3.77 | C36: руб.
A37: Годов. Потребл - 64338 квт/ч (факт 2024 г)
A38: 64338 квт/ч/244 раб.дн.в году=263,68 квт/ч в день/12 час.=21,97 квт/ч (затраты в час работы на все здание)
A39: 21,97 квт/ч /3026,6 кв.м*12,9 кв.м.=1,56 квт/ч*5,69 руб.=
A40: Вода- | B40: =F41+F42+F43+F44 -> 16.24 | C40: руб.
A41: 1 реб*75 л(в день норма)/12 часов/1000=0,00625 куб.м*64,63 руб.=0,66 руб.*кол-во дет= руб. | F41: =0.4*D9 -> 6
A42: 2 работника (воспит, уборщ)*20 л/12 час/1000=0,003 куб.м.*64,63 руб.= руб. | F42: 0.19
A43: На мытье полов 75 л/1000=0,075 куб.м.*105,86 уб.= руб. | F43: 4.85
A44: Водоотвед. 0,00625 куб.м.+0,003 куб.м.+0,075 куб.м.=0,08425 куб.м.*35,63 руб= руб. | F44: =0.084*61.85 -> 5.20
A45: Отопление - | B45: =0.015*D7/30/24*2902.6 -> 2.96 | C45: руб.
A46: 373 Гкал(по факту 2024 г)/8 мес(период отопления)= 46,63 Гкал в мес.
A47: 46,63 Гкал/3026,6*12,9 кв.м=1,270Гкал/30 дн/24 ч*1 ч=0,0018 Гкал в час*2003 руб.= руб.
B49: 3. | C49: Материальные затраты - 2,3 руб.
A50: Канцелярские товары (для ведения документации) – 10,0 руб. на одного ребенка
A51: Стоимость – 6500руб.
A52: Срок полезного использования – 8 мес.
A53: Расходы в месяц – 812,5/15=54,2
A54: Затраты на одного ребенка за одно занятие – 54,2/4 занятий в мес=13,5
A55: - Моющие средства для уборки помещения – 1,1 руб. на одного ребенка
A56: Стоимость – 5632
A57: Срок полезного использования – 8 мес.
A58: Расходы в месяц –704/8=88
A59: Затраты на одного ребенка за одно занятие –704/4 занятий в мес/15 дет | D59: 11,73 руб.
C61: Расчет стоимости одного занятия на 1 человека:
C62: Расчет цены на оказание платной услуги
C64: Наименование статей затрат | D64: Сумма (руб.)
B65: 1 | C65: Затраты на оплату труда основного персонала | D65: =D12*D9 -> 511.40
B66: 2 | C66: Затраты материальных запасов | D66: =D20*D9 -> 808.00
B67: 3 | C67: Сумма начисленной амортизации оборудования, используемого при оказании платной услуги | D67: -
B68: 4 | C68: Накладные затраты, относимые на платную услугу | D68: =D25*D9 -> 583.58
B69: 5 | C69: Итого затрат | D69: =SUM(D65:D68) -> 1902.97
B70: 6 | C70: Цена на 1 платную услугу | D70: =D69/D9 -> 126.86
B71: 7 | C71: Цена в месяц на 1 ребенка | D71: =D70*D8 -> 507.46
